bitfinex-derivatives/quotes_BNBF0:USTF0_20250511
["timestamp","ask_amount","ask_price","bid_price","bid_amount"]
[1746956731811,0.30343027,659.13,658.09,0.30390979]
[1746956732311,0.30343027,659.13,658.1,1.16384025]
[1746956732811,0.30343027,659.13,658.11,1.16384025]
[1746956733013,0.30343027,659.13,658.11,1.42796585]
[1746956733313,0.30343027,659.13,658.12,1.16384025]
[1746956734011,0.30343027,659.13,658.13,1.16384025]
[1746956734413,0.30343027,659.13,658.14,1.16384025]
[1746956734714,0.30343027,659.13,658.15,1.16384025]
[1746956735515,0.30343027,659.13,658.16,1.16384025]
[1746956736316,0.30343027,659.13,658.17,1.16384025]
[1746956736715,0.30343027,659.13,658.18,1.16384025]
[1746956737419,0.30343027,659.13,658.19,1.16384025]
[1746956737815,0.30343027,659.13,658.2,1.16384025]
[1746956738217,0.30343027,659.13,658.21,1.16384025]
[1746956739017,0.30343027,659.13,658.22,1.16384025]
[1746956739413,0.30343027,659.13,658.23,1.16384025]
[1746956739716,0.30343027,659.13,658.24,1.16384025]
[1746956740215,0.30343027,659.13,658.1,1.16384025]
[1746956740617,0.30343027,659.13,658.11,1.16384025]
[1746956740919,0.30343027,659.13,658.12,1.16384025]
[1746956741520,0.30343027,659.13,658.13,1.16384025]
[1746956742117,0.30343027,659.13,658.13,1.42797387]
[1746956742316,0.30343027,659.13,658.14,1.16384025]
[1746956743420,0.30343027,659.13,658.15,1.16384025]
[1746956744015,0.30343027,659.13,658.16,1.16384025]
[1746956744219,0.30343027,659.13,658.17,1.16384025]
[1746956744915,0.30343027,659.13,658.18,1.16384025]
[1746956746022,0.30343027,659.13,658.19,1.16384025]
[1746956746521,0.30343027,659.13,658.2,1.16384025]
[1746956746713,0.30343027,659.13,658.21,1.16384025]
[1746956747320,0.30343027,659.13,658.22,1.16384025]
[1746956747825,0.30343027,659.13,658.15,0.26413161]
[1746956747826,0.30343027,659.13,658.23,1.16384025]
[1746956748124,0.30343027,659.13,658.24,1.16384025]
[1746956748823,0.30343027,659.13,658.25,1.16384025]
[1746956749624,0.30343027,659.13,658.1,1.16384025]
[1746956750024,0.30343027,659.13,658.11,1.16384025]
[1746956750325,0.30343027,659.13,658.12,1.16384025]
[1746956750825,0.30343027,659.13,658.13,1.16384025]
[1746956751126,0.30343027,659.13,658.13,1.42798088]
[1746956751424,0.30343027,659.13,658.14,1.16384025]
[1746956752426,0.30343027,659.13,658.15,1.16384025]
[1746956752627,0.30343027,659.13,658.16,1.16384025]
[1746956753228,0.30343027,659.13,658.17,1.16384025]
[1746956753930,0.30343027,659.13,658.18,1.16384025]
[1746956754431,0.30343027,659.13,658.19,1.16384025]
[1746956755231,0.30343027,659.13,658.2,1.16384025]
[1746956755830,0.30343027,659.13,658.21,1.16384025]
[1746956756432,0.30343027,659.13,658.22,1.16384025]
[1746956757334,0.30343027,659.13,658.23,1.16384025]
[1746956757732,0.30343027,659.13,658.24,1.16384025]
[1746956758634,0.30343027,659.13,658.25,1.16384025]
[1746956759035,0.30343027,659.13,658.26,1.16384025]
[1746956759636,0.30343027,659.13,658.27,1.16384025]
[1746956760236,0.30343027,659.13,658.28,1.16384025]
[1746956761136,0.30343027,659.13,658.29,1.16384025]
[1746956761841,0.30343027,659.13,658.3,1.16384025]
[1746956762739,0.30343027,659.13,658.2,0.26410756]
[1746956762740,0.30343027,659.13,658.31,1.16384025]
[1746956763041,0.30343027,659.13,658.32,1.16384025]
[1746956763441,0.30343027,659.13,658.33,1.16384025]
[1746956764142,0.30343027,659.13,658.34,1.16384025]
[1746956764539,0.30343027,659.13,658.09,0.30390979]
[1746956765043,0.30343027,659.13,658.1,1.16512298]
[1746956765744,0.30343027,659.13,658.11,1.16512298]
[1746956765946,0.30343027,659.13,658.11,1.42924156]
[1746956766148,0.30343027,659.13,658.12,1.16512298]
[1746956766643,0.30343027,659.13,658.13,1.16512298]
[1746956767252,0.30343027,659.13,658.14,1.16512298]
[1746956767646,0.30343027,659.13,658.15,1.16512298]
[1746956768047,0.30343027,659.13,658.16,1.16512298]
[1746956768847,0.30343027,659.13,658.17,1.16512298]
[1746956769349,0.30343027,659.13,658.18,1.16512298]
[1746956769943,0.30343027,659.13,658.19,1.16512298]
[1746956770247,0.30343027,659.13,658.2,1.16512298]
[1746956770648,0.30343027,659.13,658.21,1.16512298]
[1746956771348,0.30343027,659.13,658.22,1.16512298]
[1746956771648,0.30343027,659.13,658.23,1.16512298]
[1746956772051,0.30343027,659.13,658.24,1.16512298]
[1746956772850,0.30343027,659.13,658.09,0.30390979]
[1746956773144,0.30343027,659.13,658.1,1.16566462]
[1746956773544,0.30343027,659.13,658.11,1.16566462]
[1746956773849,0.30343027,659.13,658.12,1.16566462]
[1746956774649,0.30343027,659.13,658.13,1.16566462]
[1746956775250,0.30343027,659.13,658.14,1.16566462]
[1746956775750,0.30343027,659.13,658.15,1.16566462]
[1746956776148,0.30343027,659.13,658.16,1.16566462]
[1746956777149,0.30343027,659.13,658.17,1.16566462]
[1746956777750,0.30343027,659.13,658.18,1.16566462]
[1746956778249,0.30343027,659.13,658.19,1.16566462]
[1746956778850,0.30343027,659.13,658.2,1.16566462]
[1746956779351,0.30343027,659.13,658.09,0.30390979]
[1746956779749,0.30343027,659.13,658.1,1.16439252]
[1746956780154,0.30343027,659.13,658.11,1.16439252]
[1746956780750,0.30343027,659.13,658.12,1.16439252]
[1746956780950,0.30343027,659.13,658.13,1.16439252]
[1746956781150,0.30343027,659.13,658.09,0.30390979]
[1746956781151,0.30343027,659.13,658.14,1.16439252]
[1746956781851,0.30343027,659.13,658.15,1.16439252]
[1746956782551,0.30343027,659.13,658.16,1.16439252]
[1746956783052,0.30343027,659.13,658.17,1.16439252]
[1746956783455,0.30343027,659.13,658.09,0.30390979]
[1746956784349,0.30343027,659.13,658.1,1.16420324]
[1746956784751,0.30343027,659.13,658.11,1.16420324]
[1746956785249,0.30343027,659.13,658.12,1.16420324]
[1746956785755,0.30343027,659.13,658.13,1.16420324]
[1746956786757,0.30343027,659.13,658.14,1.16420324]
[1746956787155,0.30343027,659.13,658.15,1.16420324]
[1746956787755,0.30343027,659.13,658.16,1.16420324]
[1746956788056,0.30343027,659.13,658.17,1.16420324]
[1746956788356,0.30343027,659.13,658.09,0.30390979]
[1746956788957,0.30343027,659.13,658.1,1.16402435]
[1746956789957,0.30343027,659.13,658.09,0.30390979]
[1746956789958,0.30343027,659.13,658.11,1.42818604]
[1746956790458,0.30343027,659.13,658.12,1.16402435]
[1746956791159,0.30343027,659.13,658.11,0.26419377]
[1746956791858,0.30343027,659.13,658.12,1.16402435]
[1746956795960,0.30343027,659.13,658.11,0.2641657]
[1746956796860,0.30343027,659.13,658.09,0.30390979]
[1746956797161,0.30343027,659.13,658.1,1.1643496]
[1746956797860,0.30343027,659.13,658.11,1.1643496]
[1746956798460,0.30343027,659.13,658.1,1.1643496]
[1746956800160,0.30343027,659.13,658.11,0.26419277]
[1746956800361,0.56762304,659.13,658.12,1.1643496]
[1746956800662,0.56762304,659.13,658.13,1.1643496]
[1746956800963,1.97179581,659.12,658.13,1.1643496]
[1746956801262,1.97179581,659.12,658.14,1.1643496]
[1746956801461,1.97179581,659.12,658.15,1.1643496]
[1746956801863,1.97179581,659.12,658.16,1.1643496]
[1746956802266,1.97179581,659.12,658.12,1.1643496]
[1746956803066,1.97179581,659.12,658.13,1.1643496]
[1746956803462,1.97179581,659.12,658.14,1.1643496]
[1746956803663,1.97179581,659.1,658.14,1.1643496]
[1746956803865,1.97179581,659.1,658.15,1.1643496]
[1746956804465,1.97179581,659.1,658.16,1.1643496]
[1746956805166,1.97179581,659.1,658.12,1.1643496]
[1746956805368,1.97179581,659.1,658.13,1.1643496]
[1746956805768,1.97179581,659.1,658.14,1.1643496]
[1746956806273,1.97179581,659.1,658.15,1.1643496]
[1746956806672,1.97179581,659.04,658.15,1.1643496]
[1746956806872,1.97179581,659.04,658.1,1.1643496]
[1746956807468,1.97179581,659.04,658.11,1.1643496]
[1746956807771,1.97179581,659.04,658.12,1.1643496]
[1746956808167,1.97179581,659.04,658.13,1.1643496]
[1746956808671,1.97179581,659.04,658.14,1.1643496]
[1746956808871,0.30343027,659.13,658.14,1.1643496]
[1746956809172,0.30343027,659.13,658.15,1.1643496]
[1746956809572,0.30343027,659.13,658.16,1.1643496]
[1746956810074,0.30343027,659.13,658.17,1.1643496]
[1746956811172,0.30343027,659.13,658.09,0.30390979]
[1746956811173,0.30343027,659.13,658.18,1.1643496]
[1746956811670,0.30343027,659.13,658.19,1.1643496]
[1746956812072,0.30343027,659.13,658.1,1.1643496]
[1746956812273,0.26416971,659.12,658.1,1.1643496]
[1746956812466,0.26416971,659.12,658.11,1.1643496]
[1746956812873,0.26416971,659.12,658.12,1.1643496]
[1746956813373,0.26416971,659.12,658.13,1.1643496]
[1746956813772,0.26416971,659.12,658.14,1.1643496]
[1746956814372,0.26416971,659.12,658.15,1.1643496]
[1746956814874,0.30343027,659.13,658.15,1.1643496]
[1746956815073,0.30343027,659.13,658.16,1.1643496]
[1746956815474,0.30343027,659.13,658.17,1.1643496]
[1746956815774,0.30343027,659.13,658.18,1.1643496]
[1746956816473,0.30343027,659.13,658.19,1.1643496]
[1746956816974,0.30343027,659.13,658.2,1.1643496]
[1746956817375,0.30343027,659.13,658.09,0.30390979]
[1746956818073,0.30343027,659.13,658.1,1.16574557]
[1746956818573,0.30343027,659.13,658.11,1.16574557]
[1746956819171,0.30343027,659.13,658.12,1.16574557]
[1746956819775,0.30343027,659.13,658.13,1.16574557]
[1746956820177,0.30343027,659.13,658.14,1.16574557]
[1746956820477,0.30343027,659.13,658.15,1.16574557]
[1746956820779,0.30343027,659.13,658.16,1.16574557]
[1746956821477,0.30343027,659.13,658.17,1.16574557]
[1746956822177,0.30343027,659.13,658.18,1.16574557]
[1746956822377,0.30343027,659.13,658.19,1.16574557]
[1746956822778,0.30343027,659.13,658.09,0.30390979]
[1746956822976,0.30343027,659.13,658.2,1.16478433]
[1746956823678,0.30343027,659.13,658.21,1.16478433]
[1746956824078,0.30343027,659.13,658.22,1.16478433]
[1746956824577,0.30343027,659.13,658.09,0.30390979]
[1746956824578,0.30343027,659.13,658.23,1.16478433]
[1746956824976,0.30343027,659.13,658.24,1.16478433]
[1746956825178,0.30343027,659.13,658.09,0.30390979]
[1746956825778,0.30343027,659.13,658.1,1.16573954]
[1746956825972,0.30343027,659.13,658.11,1.16573954]
[1746956826681,0.30343027,659.13,658.12,1.16573954]
[1746956827078,0.30343027,659.13,658.13,1.16573954]
[1746956827275,0.30343027,659.13,658.14,1.16573954]
[1746956827779,0.30343027,659.13,658.15,1.16573954]
[1746956828478,0.30343027,659.13,658.16,1.16573954]
[1746956828983,0.30343027,659.13,658.17,1.16573954]
[1746956829478,0.30343027,659.13,658.18,1.16573954]
[1746956829884,0.30343027,659.13,658.1,1.16573954]
[1746956830685,0.30343027,659.13,658.11,1.16573954]
[1746956831381,0.30343027,659.13,658.12,1.16573954]
[1746956831687,0.30343027,659.13,658.13,1.16573954]
[1746956832087,0.30343027,659.13,658.14,1.16573954]
[1746956832887,0.30343027,659.13,658.15,1.16573954]
[1746956833386,0.30343027,659.13,658.16,1.16573954]
[1746956834189,0.30343027,659.13,658.17,1.16573954]
[1746956835091,0.30343027,659.13,658.18,1.16573954]
[1746956835388,0.30343027,659.13,658.19,1.16573954]
[1746956835983,0.30343027,659.13,658.2,1.16573954]
[1746956836690,0.30343027,659.13,658.09,0.30390979]
[1746956836691,0.30343027,659.13,658.21,1.16573954]
[1746956837391,0.30343027,659.13,658.22,1.16573954]
[1746956837890,0.30343027,659.13,658.23,1.16573954]
[1746956838391,0.30343027,659.13,658.24,1.16573954]
[1746956839090,0.30343027,659.13,658.25,1.16573954]
[1746956839594,0.30343027,659.13,658.09,0.30390979]
[1746956840093,0.30343027,659.13,658.1,1.16364083]
[1746956840893,0.30343027,659.13,658.11,1.16364083]
[1746956841694,0.30343027,659.13,658.12,1.16364083]
[1746956842094,0.30343027,659.13,658.13,1.16364083]
[1746956842687,0.30343027,659.13,658.14,1.16364083]
[1746956843094,0.30343027,659.13,658.15,1.16364083]
[1746956843793,0.30343027,659.13,658.16,1.16364083]
[1746956844495,0.30343027,659.13,658.17,1.16364083]
[1746956845291,0.30343027,659.13,658.18,1.16364083]
[1746956845595,0.30343027,659.13,658.19,1.16364083]
[1746956845895,0.30343027,659.13,658.2,1.16364083]
[1746956846394,0.30343027,659.13,658.21,1.16364083]
[1746956846793,0.30343027,659.13,658.22,1.16364083]
[1746956847192,0.30343027,659.13,658.23,1.16364083]
[1746956847797,0.30343027,659.13,658.24,1.16364083]
[1746956848297,0.30343027,659.13,658.25,1.16364083]
[1746956849199,0.30343027,659.13,658.26,1.16364083]
[1746956849599,0.30343027,659.13,658.27,1.16364083]
[1746956850199,0.30343027,659.13,658.28,1.16364083]
[1746956850900,0.30343027,659.13,658.09,0.30390979]
[1746956851301,0.30343027,659.13,658.1,1.16112576]
[1746956851895,0.30343027,659.13,658.11,1.16112576]
[1746956852600,0.30343027,659.13,658.12,1.16112576]
[1746956853101,0.30343027,659.13,658.13,1.16112576]
[1746956853503,0.30343027,659.13,658.14,1.16112576]
[1746956854402,0.30343027,659.13,658.15,1.16112576]
[1746956855002,0.30343027,659.13,658.16,1.16112576]
[1746956855602,0.30343027,659.13,658.17,1.16112576]
[1746956856103,0.30343027,659.13,658.18,1.16112576]
[1746956856903,0.30343027,659.13,658.19,1.16112576]
[1746956857303,0.30343027,659.13,658.2,1.16112576]
[1746956858014,0.30343027,659.13,658.21,1.16112576]
[1746956858403,0.30343027,659.13,658.22,1.16112576]
[1746956858804,0.30343027,659.13,658.23,1.16112576]
[1746956859004,0.30343027,659.13,658.24,1.16112576]
[1746956859604,0.30343027,659.13,658.09,0.30390979]
[1746956860606,0.30343027,659.13,658.1,1.16193934]
[1746956860908,0.30343027,659.13,658.09,0.30390979]
[1746956862108,0.26428908,659.12,658.09,0.30390979]
[1746956862910,0.30343027,659.13,658.09,0.30390979]
[1746956863409,0.26428908,659.12,658.09,0.30390979]
[1746956869015,0.30343027,659.13,658.09,0.30390979]
[1746956877128,0.26431618,659.12,658.09,0.30390979]
[1746956877927,0.30343027,659.13,658.09,0.30390979]
[1746956881129,0.26433826,659.12,658.09,0.30390979]
[1746956886936,0.30343027,659.13,658.09,0.30390979]
[1746956887131,0.26435131,659.11,658.09,0.30390979]
[1746956889938,0.30343027,659.13,658.09,0.30390979]
[1746956890340,0.26433927,659.12,658.09,0.30390979]
[1746956890634,1.97179581,659.1,658.09,0.30390979]
[1746956893139,0.26435834,659.09,658.09,0.30390979]
[1746956893342,1.97179581,659.07,658.09,0.30390979]
[1746956896236,0.26435633,659.06,658.09,0.30390979]
[1746956898943,0.30343027,659.13,658.09,0.30390979]
[1746956899343,0.26436939,659.05,658.09,0.30390979]
[1746956899542,0.30343027,659.13,658.09,0.30390979]
[1746956905147,0.26430112,659.12,658.09,0.30390979]
[1746956907949,0.30343027,659.13,658.09,0.30390979]
[1746956910546,0.26431216,659.12,658.09,0.30390979]
[1746956910951,0.30343027,659.13,658.09,0.30390979]
[1746956913554,1.97179581,659.06,658.09,0.30390979]
[1746956914156,1.97179581,659.06,658.1,0.2643232]
[1746956915555,0.30343027,659.13,658.1,0.2643232]
[1746956916955,0.30343027,659.13,658.09,0.30390979]
[1746956917158,0.26420681,659.12,658.09,0.30390979]
[1746956917455,0.26420681,659.12,658.1,0.26431919]
[1746956920058,0.30343027,659.13,658.09,0.30390979]
[1746956920254,0.30343027,659.13,658.1,1.16599543]
[1746956920958,0.30343027,659.13,658.11,1.16599543]
[1746956921358,0.30343027,659.13,658.12,1.16599543]
[1746956921959,0.30343027,659.13,658.13,1.16599543]
[1746956922761,0.30343027,659.13,658.09,0.30390979]
[1746956923155,0.26431317,659.12,658.1,1.43029556]
[1746956923756,0.26431317,659.12,658.11,1.16598239]
[1746956924362,0.26431317,659.12,658.12,1.16598239]
[1746956924962,0.26431317,659.12,658.13,1.16598239]
[1746956925460,0.26431317,659.12,658.14,1.16598239]
[1746956925965,0.30343027,659.13,658.14,1.16598239]
[1746956926266,0.30343027,659.13,658.09,0.30390979]
[1746956926466,0.30343027,659.13,658.1,1.16600607]
[1746956926965,0.30343027,659.13,658.11,1.16600607]
[1746956927467,0.30343027,659.13,658.12,1.16600607]
[1746956927967,0.30343027,659.13,658.13,1.16600607]
[1746956928668,0.30343027,659.13,658.14,1.16600607]
[1746956928966,0.30343027,659.13,658.15,1.16600607]
[1746956929961,0.30343027,659.13,658.09,0.30390979]
[1746956929962,0.30343027,659.13,658.16,1.16600607]
[1746956930570,0.30343027,659.13,658.09,0.30390979]
[1746956931470,0.30343027,659.13,658.1,1.16484832]
[1746956932269,0.30343027,659.13,658.09,0.30390979]
[1746956933670,0.30343027,659.13,658.1,1.16444916]
[1746956934170,0.30343027,659.13,658.09,0.30390979]
[1746956935672,0.30343027,659.13,658.1,1.16434545]
[1746956936273,0.30343027,659.13,658.09,0.30390979]
[1746956937872,0.30343027,659.13,658.1,1.16452073]
[1746956938271,0.26415567,659.12,658.1,1.16452073]
[1746956938471,0.26415567,659.12,658.09,0.30390979]
[1746956939973,0.26415567,659.12,658.1,1.16460043]
[1746956940173,0.26415567,659.12,658.11,1.16460043]
[1746956940974,0.30343027,659.13,658.12,1.16460043]
[1746956941370,0.30343027,659.13,658.13,1.16460043]
[1746956941874,0.30343027,659.13,658.14,1.16460043]
[1746956942273,0.30343027,659.13,658.15,1.16460043]
[1746956942873,0.30343027,659.13,658.16,1.16460043]
[1746956943873,0.30343027,659.13,658.17,1.16460043]
[1746956944176,0.26413261,659.12,658.09,0.30390979]
[1746956944477,0.26413261,659.12,658.1,1.16457847]
[1746956944774,0.26413261,659.12,658.11,1.16457847]
[1746956945272,0.26413261,659.12,658.12,1.16457847]
[1746956946073,0.26413261,659.12,658.13,1.16457847]
[1746956946476,0.26413261,659.12,658.14,1.16457847]
[1746956946879,0.26413261,659.12,658.09,0.30390979]
[1746956946880,0.26413261,659.12,658.1,1.16457847]
[1746956947180,0.30343027,659.13,658.1,1.16457847]
[1746956947379,0.30343027,659.13,658.11,1.16457847]
[1746956947679,0.30343027,659.13,658.09,0.30390979]
[1746956948078,0.30343027,659.13,658.1,1.16509677]
[1746956948473,0.30343027,659.13,658.11,1.16509677]
[1746956948980,0.30343027,659.13,658.09,0.30390979]
[1746956949580,0.30343027,659.13,658.1,1.16540692]
[1746956949781,0.30343027,659.13,658.11,1.16540692]
[1746956950380,0.30343027,659.13,658.1,1.16540692]
[1746956951481,0.30343027,659.13,658.09,0.30390979]
[1746956952984,0.30343027,659.13,658.1,1.16553768]
[1746956953484,0.30343027,659.13,658.11,1.16553768]
[1746956953783,0.30343027,659.13,658.09,0.30390979]
[1746956954586,0.30343027,659.13,658.1,1.16547922]
[1746956955280,0.30343027,659.13,658.11,1.16547922]
[1746956955485,0.30343027,659.13,658.09,0.30390979]
[1746956955887,0.30343027,659.13,658.1,1.16550383]
[1746956956388,0.30343027,659.13,658.11,1.16550383]
[1746956956687,0.30343027,659.13,658.09,0.30390979]
[1746956956989,0.30343027,659.13,658.1,1.16542916]
[1746956957487,0.30343027,659.13,658.11,1.16542916]
[1746956958088,0.30343027,659.13,658.09,0.30390979]
[1746956958280,0.30343027,659.13,658.1,1.16543708]
[1746956958890,0.30343027,659.13,658.11,1.16543708]
[1746956959087,0.30343027,659.13,658.09,0.30390979]
[1746956959788,0.30343027,659.13,658.1,1.16546758]
[1746956960488,0.30343027,659.13,658.09,0.30390979]
[1746956961295,0.30343027,659.13,658.1,1.16541637]
[1746956961689,0.30343027,659.13,658.09,0.30390979]
[1746956962488,0.30343027,659.13,658.1,1.16540378]
[1746956962990,0.30343027,659.13,658.09,0.30390979]
[1746956963992,0.30343027,659.13,658.1,1.16639593]
[1746956964186,0.30343027,659.13,658.09,0.30390979]
[1746956965288,0.26431417,659.12,658.09,0.30390979]
[1746956967991,0.30343027,659.13,658.09,0.30390979]
[1746956970899,1.97179581,659.11,658.09,0.30390979]
[1746956974001,1.97179581,659.03,658.09,0.30390979]
[1746956976800,1.97179581,659.03,656.76,0.96762048]
[1746956976801,0.26435633,659.02,656.76,0.96762048]
[1746956976994,0.26435633,659.02,656.87,0.30447424]
[1746956977195,0.26435633,659.02,656.88,1.16731695]
[1746956977599,0.26435633,659.02,656.89,1.16731695]
[1746956977899,0.26435633,659.02,656.98,0.30442327]
[1746956978201,0.26435633,659.02,656.99,1.16731695]
[1746956978403,0.26435633,659.02,657.09,0.3043723]
[1746956978901,0.26435633,659.02,657.1,1.16731695]
[1746956979103,0.26435633,659.02,657.12,0.30435841]
[1746956979504,0.26435633,659.02,657.13,1.16731695]
[1746956979705,0.26435633,659.02,657.15,0.30434451]
[1746956980104,0.26435633,659.02,657.16,1.16731695]
[1746956980403,0.26435633,659.02,657.18,0.30433062]
[1746956980704,0.26435633,659.02,657.19,1.16731695]
[1746956981306,0.26435633,659.02,657.2,1.16731695]
[1746956981906,0.26435633,659.02,657.21,1.16731695]
[1746956982405,0.26435633,659.02,657.22,1.16731695]
[1746956982706,0.26435633,659.02,657.23,1.16731695]
[1746956983008,0.30347632,659.03,657.23,1.16731695]
[1746956983505,0.30347632,659.03,657.24,1.16731695]
[1746956983907,0.30347632,659.03,657.26,0.30429358]
[1746956984308,0.30347632,659.03,657.27,1.16731695]
[1746956984507,0.30347632,659.03,657.29,0.30427969]
[1746956985109,0.26429309,659.02,657.29,0.30427969]
[1746956985408,0.56777401,659.02,657.29,0.30427969]
[1746956985607,0.56777401,659.02,657.3,1.16731695]
[1746956985808,0.56777401,659.02,657.32,0.3042658]
[1746956986009,0.30348092,659.02,657.32,0.3042658]
[1746956986208,0.30348092,659.02,657.33,1.16731695]
[1746956986405,0.30348092,659.02,657.35,0.30425192]
[1746956987311,0.30348092,659.02,657.36,1.16731695]
[1746956987510,0.30348092,659.02,657.37,1.16731695]
[1746956987810,0.30348092,659.02,657.39,0.3042334]
[1746956988013,0.30348092,659.02,657.4,1.16731695]
[1746956988413,0.30348092,659.02,657.42,0.30421952]
[1746956988713,0.30348092,659.02,657.43,1.16731695]
[1746956988913,0.30348092,659.02,657.45,0.30420564]
[1746956989212,0.26426098,659.01,657.46,1.16731695]
[1746956989415,0.26426098,659.01,657.48,0.30419176]
[1746956989814,0.26426098,659.01,657.49,1.16731695]
[1746956990015,0.26426098,659.01,657.51,0.30417788]
[1746956990415,0.26426098,659.01,657.52,1.16731695]
[1746956990714,0.26426098,659.01,657.53,0.30416863]
[1746956991014,0.26426098,659.01,657.54,1.16731695]
[1746956991313,0.26426098,659.01,657.55,0.30415937]
[1746956991512,0.26426098,659.01,657.55,1.47147632]
[1746956991707,0.26426098,659.01,657.56,1.16731695]
[1746956991912,0.26426098,659.01,657.57,0.30415012]
[1746956992113,0.30348092,659.02,657.57,0.30415012]
[1746956992314,0.26431015,659.0,657.57,0.30415012]
[1746956992513,0.26431015,659.0,657.58,1.16731695]
[1746956992714,0.26431015,659.0,657.59,0.30414087]
[1746956993015,0.26431015,659.0,657.6,1.16731695]
[1746956993315,0.26431015,659.0,657.61,0.30413162]
[1746956993715,0.26431015,659.0,657.62,1.16731695]
[1746956993916,0.26431015,659.0,657.63,0.30412237]
[1746956994215,0.26431015,659.0,657.64,1.16731695]
[1746956994416,0.26431015,659.0,657.65,0.30411313]
[1746956994715,0.26431015,659.0,657.65,1.47143008]
[1746956995013,0.30348092,659.02,657.66,1.16731695]
[1746956995216,0.30348092,659.02,657.67,1.47142083]
[1746956995417,0.30348092,659.02,657.68,0.30409925]
[1746956995913,0.30348092,659.02,657.69,1.16731695]
[1746956996117,0.30348092,659.02,657.69,1.47141158]
[1746956996917,0.30348092,659.02,657.7,1.16731695]
[1746956997216,0.26420581,659.01,657.7,1.16731695]
[1746956997417,0.26420581,659.01,657.71,1.16731695]
[1746956997817,0.26420581,659.01,657.72,1.16731695]
[1746956998017,0.30348092,659.02,657.72,1.16731695]
[1746956998211,0.30348092,659.02,657.73,1.16731695]
[1746956998516,0.2642941,659.0,657.73,1.16731695]
[1746956998717,0.2642941,659.0,657.74,1.16731695]
[1746956999418,0.2642941,659.0,657.75,1.16731695]
[1746956999916,0.2642941,659.0,657.76,1.16731695]
[1746957000519,0.2642941,659.0,657.77,1.16731695]
[1746957001117,0.30348092,659.02,657.78,1.16731695]
[1746957001318,0.26428908,658.99,657.78,1.16731695]
[1746957001717,0.26428908,658.99,657.79,1.16731695]
[1746957002319,0.26428908,658.99,657.8,1.16731695]
[1746957002617,0.26428908,658.99,657.69,0.30409463]
[1746957002618,0.26428908,658.99,657.81,1.16731695]
[1746957003119,0.26428908,658.99,657.82,1.16731695]
[1746957003417,0.26428908,658.99,657.83,1.16731695]
[1746957004019,0.30348092,659.02,657.83,1.16731695]
[1746957004318,0.30348092,659.02,657.84,1.16731695]
[1746957004517,0.264267,659.01,657.84,1.16731695]
[1746957004919,0.264267,659.01,657.85,1.16731695]
[1746957005322,0.264267,659.01,657.86,1.16731695]
[1746957006317,0.264267,659.01,657.87,1.16731695]
[1746957006621,0.264267,659.01,657.88,1.16731695]
[1746957007022,0.30348092,659.02,657.89,1.16731695]
[1746957007322,0.26427804,659.0,657.89,1.16731695]
[1746957007622,0.26427804,659.0,657.9,1.16731695]
[1746957007921,0.26427804,659.0,657.91,1.16731695]
[1746957008223,0.26427804,659.0,657.92,1.16731695]
[1746957008419,0.26427804,659.0,657.93,1.16731695]
[1746957008723,0.26427804,659.0,657.94,1.16731695]
[1746957009025,0.26427804,659.0,657.95,1.16731695]
[1746957009621,0.26427804,659.0,657.96,1.16731695]
[1746957010027,0.30348092,659.02,657.96,1.16731695]
[1746957010221,0.30348092,659.02,657.7,1.16731695]
[1746957010424,0.26425396,659.01,657.7,1.16731695]
[1746957010623,0.56773949,659.01,657.7,1.16731695]
[1746957010821,0.56773949,659.01,657.71,1.16731695]
[1746957011628,0.56773949,659.01,657.72,1.16731695]
[1746957012129,0.56773949,659.01,657.73,1.43161406]
[1746957012429,0.56773949,659.01,657.74,1.16731695]
[1746957012829,0.56773949,659.01,657.75,1.16731695]
[1746957013028,0.30348553,659.01,657.75,1.16731695]
[1746957013428,0.2642941,659.0,657.75,1.16731695]
[1746957014134,0.2642941,659.0,657.76,1.16731695]
[1746957014528,0.2642941,659.0,657.77,1.16731695]
[1746957015230,0.2642941,659.0,657.78,1.16731695]
[1746957015835,0.2642941,659.0,657.79,1.16731695]
[1746957016035,0.30348553,659.01,657.79,1.16731695]
[1746957016238,0.26429008,658.99,657.8,1.16731695]
[1746957016936,0.26429008,658.99,657.81,1.16731695]
[1746957017737,0.26429008,658.99,657.82,1.16731695]
[1746957018047,0.26429008,658.99,657.83,1.16731695]
[1746957018740,0.26429008,658.99,657.84,1.16731695]
[1746957019138,0.30348553,659.01,657.84,1.16731695]
[1746957019338,0.30348553,659.01,657.85,1.16731695]
[1746957019538,0.26428506,658.98,657.85,1.16731695]
[1746957020339,0.26428506,658.98,657.8,1.16731695]
[1746957020940,0.26428506,658.98,657.81,1.16731695]
[1746957021244,0.26428506,658.98,657.82,1.16731695]
[1746957021435,0.26428506,658.98,657.83,1.16731695]
[1746957021741,0.26428506,658.98,657.84,1.16731695]
[1746957021941,0.30348553,659.01,657.84,1.16731695]
[1746957022142,0.30348553,659.01,657.85,1.16731695]
[1746957022337,0.26428506,658.97,657.85,1.16731695]
[1746957022940,0.26428506,658.97,657.86,1.16731695]
[1746957023243,0.26428506,658.97,657.87,1.16731695]
[1746957023744,0.26428506,658.97,657.81,0.26428506]
[1746957024143,0.26428506,658.97,657.82,1.16655378]
[1746957024643,0.26428506,658.97,657.83,1.16655378]
[1746957024844,0.26428506,658.97,657.82,1.16655378]
[1746957025039,0.30348553,659.01,657.82,1.16655378]